bitfinex/quotes_BTCUSD_20211001
["timestamp","ask_amount","ask_price","bid_price","bid_amount"]
[1633077993560,0.0223,44865.0,44860.0,1.40342871]
[1633077993757,0.0223,44865.0,44861.0,0.66873]
[1633077993960,0.0223,44865.0,44861.0,0.74002183]
[1633077994158,0.0223,44865.0,44862.0,0.22289]
[1633077994358,0.15602454,44866.0,44863.0,0.66873]
[1633077995783,0.19402454,44866.0,44863.0,0.66873]
[1633077996379,0.15602454,44866.0,44863.0,0.66873]
[1633077997178,0.49036954,44866.0,44863.0,0.66873]
[1633077997779,0.53036954,44866.0,44863.0,0.66873]
[1633077998180,0.26936725,44865.0,44863.0,0.66873]
[1633077998382,1.056676,44864.0,44863.0,0.66873]
[1633077998581,1.57810802,44864.0,44863.0,0.66873]
[1633077999381,0.87810802,44864.0,44863.0,0.66873]
[1633077999582,0.65141302,44864.0,44863.0,0.66873]
[1633077999982,0.68441302,44864.0,44863.0,0.66873]
[1633078001645,0.65141302,44864.0,44863.0,0.66873]
[1633078001789,0.68441302,44864.0,44863.0,0.66873]
[1633078003391,1.226695,44863.0,44860.0,0.64638273]
[1633078003591,1.25249942,44861.0,44860.0,0.64638273]
[1633078003793,1.50149442,44861.0,44860.0,0.64638273]
[1633078003992,1.60149442,44861.0,44860.0,0.64638273]
[1633078004388,1.82469442,44861.0,44860.0,0.64638273]
[1633078005789,3.03769442,44861.0,44860.0,0.64638273]
[1633078007194,3.00769442,44861.0,44860.0,0.64638273]
[1633078007793,3.04169442,44861.0,44860.0,0.64638273]
[1633078009391,3.00769442,44861.0,44860.0,0.64638273]
[1633078009794,3.04169442,44861.0,44860.0,0.64638273]
[1633078009998,0.260695,44861.0,44860.0,0.64638273]
[1633078010197,0.034,44861.0,44860.0,0.6476557]
[1633078010797,0.034,44861.0,44860.0,1.3164057]
[1633078011199,2.68541706,44870.0,44860.0,1.3169358]
[1633078011597,2.68541706,44870.0,44861.0,0.0005301]
[1633078011799,2.70441706,44870.0,44862.0,0.66875]
[1633078011999,0.08352113,44869.0,44865.0,0.19059303]
[1633078012195,0.334338,44868.0,44865.0,0.19059303]
[1633078012395,0.334338,44868.0,44866.0,0.66875]
[1633078012599,0.334338,44868.0,44866.0,0.65875]
[1633078013397,0.08352113,44869.0,44866.0,0.65875]
[1633078013798,0.04,44868.0,44866.0,0.65875]
[1633078014602,0.561037,44867.0,44866.0,0.65875]
[1633078014803,0.334342,44867.0,44866.0,0.65875]
[1633078015807,0.334342,44867.0,44866.0,0.41709857]
[1633078015808,3.56392818,44867.0,44866.0,0.41709857]
[1633078016002,3.71641048,44867.0,44866.0,0.26224049]
[1633078016200,4.27441048,44867.0,44866.0,0.06865994]
[1633078016800,4.47220258,44867.0,44866.0,0.06865994]
[1633078017002,4.68766033,44867.0,44866.0,0.06865994]
[1633078017204,4.64966033,44867.0,44866.0,0.06865994]
[1633078018001,4.79366033,44867.0,44866.0,0.06865994]
[1633078019805,4.75966033,44867.0,44866.0,0.06865994]
[1633078020003,4.79366033,44867.0,44866.0,0.06865994]
[1633078021204,4.79366033,44867.0,44866.0,0.05615994]
[1633078021404,4.75966033,44867.0,44866.0,0.05615994]
[1633078021805,1.25,44866.0,44860.0,0.64638273]
[1633078022005,1.25120741,44861.0,44860.0,0.64638273]
[1633078022208,1.55020241,44861.0,44860.0,0.64638273]
[1633078022402,1.65020241,44861.0,44860.0,0.64638273]
[1633078022804,1.74327221,44861.0,44860.0,0.64638273]
[1633078023203,2.92627221,44861.0,44860.0,0.64638273]
[1633078023404,3.26074921,44861.0,44860.0,0.64638273]
[1633078024003,3.29474921,44861.0,44860.0,0.64638273]
[1633078025404,3.26074921,44861.0,44860.0,0.64638273]
[1633078026013,2.41526124,44859.0,44847.0,0.109372]
[1633078026214,2.41526124,44859.0,44833.0,0.1]
[1633078026215,0.55927066,44848.0,44833.0,0.1]
[1633078026411,1.27791303,44846.0,44833.0,0.1]
[1633078026610,1.30021303,44846.0,44833.0,0.1]
[1633078026808,1.40021303,44846.0,44833.0,0.1]
[1633078027010,1.93700468,44846.0,44833.0,0.1]
[1633078027209,2.01079274,44846.0,44833.0,0.1]
[1633078027414,3.06879274,44846.0,44833.0,0.1]
[1633078027608,3.26879274,44846.0,44845.0,0.13837227]
[1633078027808,3.26879274,44846.0,44833.0,0.1]
[1633078027809,1.25,44845.0,44833.0,0.1]
[1633078028012,0.00124761,44837.0,44833.0,0.1]
[1633078028211,1.00129012,44834.0,44833.0,0.1]
[1633078028410,1.62072397,44834.0,44833.0,0.1]
[1633078028608,2.06693197,44834.0,44833.0,0.1]
[1633078030011,2.09993197,44834.0,44833.0,0.1]
[1633078031017,0.226695,44833.0,44824.0,0.213784]
[1633078031217,0.87323697,44834.0,44824.0,0.2143141]
[1633078031218,0.17639169,44828.0,44824.0,0.2143141]
[1633078031419,0.34815397,44827.0,44824.0,0.213784]
[1633078031683,0.23560343,44826.0,44824.0,0.213784]
[1633078031813,0.30991674,44825.0,44824.0,0.213784]
[1633078032216,0.30955174,44825.0,44824.0,0.28730374]
[1633078032416,0.30219521,44825.0,44824.0,0.28730374]
[1633078032616,0.30219521,44825.0,44824.0,0.28783384]
[1633078032815,0.30219521,44825.0,44824.0,0.28730374]
[1633078033418,0.31482529,44826.0,44824.0,0.28730374]
[1633078033617,0.27129383,44825.0,44824.0,0.213784]
[1633078033821,0.52028883,44825.0,44824.0,0.0012]
[1633078034017,0.52028883,44825.0,44824.0,0.0212]
[1633078034216,0.248995,44825.0,44824.0,0.0212]
[1633078034817,0.248995,44825.0,44824.0,0.0012]
[1633078035418,0.56331446,44825.0,44824.0,0.0012]
[1633078036220,0.60731446,44825.0,44824.0,0.0012]
[1633078037021,0.71731446,44825.0,44824.0,0.0012]
[1633078037423,1.32452238,44825.0,44824.0,0.0012]
[1633078037683,0.77452238,44825.0,44824.0,0.00108001]
[1633078037823,0.67452238,44825.0,44824.0,0.00108001]
[1633078038224,0.70952238,44825.0,44824.0,0.00108001]
[1633078038423,0.70831446,44825.0,44824.0,0.00108001]
[1633078039621,0.393995,44825.0,44824.0,0.00108001]
[1633078039826,0.358995,44825.0,44824.0,0.00108001]
[1633078040023,0.63453447,44825.0,44824.0,0.00108001]
[1633078040222,0.67353447,44825.0,44824.0,0.00108001]
[1633078040424,0.397995,44825.0,44824.0,0.00108001]
[1633078040923,0.67257762,44825.0,44824.0,0.00108001]
[1633078041525,0.63357762,44825.0,44824.0,0.00108001]
[1633078042122,0.67057762,44825.0,44824.0,0.00108001]
[1633078043526,0.63357762,44825.0,44824.0,0.00108001]
[1633078044126,0.67257762,44825.0,44824.0,0.00108001]
[1633078044328,0.97257762,44825.0,44824.0,0.00108001]
[1633078045127,0.67257762,44825.0,44824.0,0.00108001]
[1633078045528,0.358995,44825.0,44824.0,0.00108001]
[1633078046431,0.397995,44825.0,44824.0,0.00108001]
[1633078046692,0.1713,44825.0,44824.0,0.00108001]
[1633078046892,0.397995,44825.0,44824.0,0.00108001]
[1633078047891,0.358995,44825.0,44824.0,0.00108001]
[1633078048293,0.393995,44825.0,44824.0,0.00108001]
[1633078049493,0.1673,44825.0,44824.0,0.00108001]
[1633078049897,0.145,44825.0,44824.0,0.00108001]
[1633078050296,0.183,44825.0,44824.0,0.00108001]
[1633078050496,0.148,44825.0,44824.0,0.00108001]
[1633078052098,0.11,44825.0,44824.0,0.00108001]
[1633078052497,0.149,44825.0,44824.0,0.00108001]
[1633078052700,0.42061859,44825.0,44824.0,0.00108001]
[1633078053003,0.375695,44825.0,44824.0,0.00108001]
[1633078053797,0.64543431,44825.0,44824.0,0.00108001]
[1633078054201,0.149,44825.0,44824.0,0.00108001]
[1633078054398,0.149,44825.0,44824.0,0.00237969]
[1633078054804,0.153,44825.0,44824.0,0.00237969]
[1633078055200,0.11,44825.0,44824.0,0.00237969]
[1633078055802,0.11,44825.0,44824.0,0.00108001]
[1633078056503,0.155,44825.0,44824.0,0.00108001]
[1633078057500,0.11,44825.0,44824.0,0.00108001]
[1633078058001,0.11,44825.0,44824.0,0.00236891]
[1633078058406,0.156,44825.0,44824.0,0.00236891]
[1633078058602,0.382695,44825.0,44824.0,0.00236891]
[1633078059000,0.66767031,44825.0,44824.0,0.00236891]
[1633078059400,0.382695,44825.0,44824.0,0.00236891]
[1633078060001,0.336695,44825.0,44824.0,0.00236891]
[1633078060401,0.381695,44825.0,44824.0,0.00236891]
[1633078060803,0.381695,44825.0,44824.0,0.00108001]
[1633078061202,0.731695,44825.0,44824.0,0.00108001]
[1633078061405,0.381695,44825.0,44824.0,0.00108001]
[1633078061803,0.336695,44825.0,44824.0,0.00108001]
[1633078062203,0.836695,44825.0,44824.0,0.00108001]
[1633078062604,0.880695,44825.0,44824.0,0.00108001]
[1633078063404,0.836695,44825.0,44824.0,0.00108001]
[1633078064605,0.881695,44825.0,44824.0,0.00108001]
[1633078066610,1.10677471,44825.0,44824.0,0.00108001]
[1633078066809,1.15764292,44825.0,44824.0,0.00108001]
[1633078067011,1.50434715,44825.0,44824.0,0.00108001]
[1633078067215,1.28114715,44825.0,44824.0,0.00108001]
[1633078068008,1.50434715,44825.0,44824.0,0.00108001]
[1633078068810,1.50334715,44825.0,44824.0,0.00108001]
[1633078069207,1.28014715,44825.0,44824.0,0.00108001]
[1633078069809,1.50334715,44825.0,44824.0,0.00108001]
[1633078070009,1.45934715,44825.0,44824.0,0.00108001]
[1633078070410,1.21735576,44824.0,44821.0,0.00208001]
[1633078070612,1.33965576,44824.0,44821.0,0.00208001]
[1633078071010,1.23965576,44824.0,44821.0,0.00208001]
[1633078071610,0.334731,44823.0,44821.0,0.00208001]
[1633078071812,0.42835623,44825.0,44824.0,4.29649561]
[1633078072012,0.45065623,44825.0,44824.0,4.29649561]
[1633078072210,0.40665623,44825.0,44824.0,4.29649561]
[1633078072618,0.40665623,44825.0,44824.0,4.19649561]
[1633078072819,0.78537523,44825.0,44824.0,4.19649561]
[1633078074015,0.784171,44825.0,44824.0,4.19649561]
[1633078074210,0.740171,44825.0,44824.0,4.19649561]
[1633078074812,0.784171,44825.0,44824.0,4.19649561]
[1633078076212,0.740171,44825.0,44824.0,4.19649561]
[1633078076914,0.784171,44825.0,44824.0,4.19649561]
[1633078078118,0.79710459,44825.0,44824.0,4.19649561]
[1633078078913,0.84110459,44825.0,44824.0,4.19649561]
[1633078079116,0.561019,44825.0,44824.0,4.19649561]
[1633078079313,0.511019,44825.0,44824.0,4.19649561]
[1633078080114,0.467019,44825.0,44824.0,4.19649561]
[1633078080816,0.511019,44825.0,44824.0,4.19649561]
[1633078081014,0.79033319,44825.0,44824.0,4.19649561]
[1633078081215,0.511019,44825.0,44824.0,4.19649561]
[1633078082017,0.83950565,44825.0,44824.0,4.19649561]
[1633078082217,0.517019,44825.0,44824.0,4.19649561]
[1633078082618,0.79588542,44825.0,44824.0,4.19649561]
[1633078082817,0.517019,44825.0,44824.0,4.19649561]
[1633078083016,0.561019,44825.0,44824.0,4.19649561]
[1633078083217,0.85468711,44825.0,44824.0,4.19649561]
[1633078083418,0.511019,44825.0,44824.0,4.19649561]
[1633078083616,0.78875812,44825.0,44824.0,4.19649561]
[1633078083819,0.511019,44825.0,44824.0,4.19649561]
[1633078084220,0.467019,44825.0,44824.0,4.19649561]
[1633078084416,0.517019,44825.0,44824.0,4.19649561]
[1633078084819,0.561019,44825.0,44824.0,4.19649561]
[1633078085216,0.511019,44825.0,44824.0,4.19649561]
[1633078086221,0.79588022,44825.0,44824.0,4.19649561]
[1633078086422,0.517019,44825.0,44824.0,4.19649561]
[1633078087023,0.561019,44825.0,44824.0,4.19649561]
[1633078087226,0.561019,44825.0,44824.0,4.13192078]
[1633078088688,0.83983244,44825.0,44824.0,4.13192078]
[1633078088823,0.517019,44825.0,44824.0,4.13192078]
[1633078089025,0.561019,44825.0,44824.0,4.13192078]
[1633078090426,0.517019,44825.0,44824.0,4.13192078]
[1633078090828,0.79973849,44825.0,44824.0,4.13192078]
[1633078091027,0.94721145,44825.0,44824.0,4.13192078]
[1633078091430,2.02041145,44825.0,44824.0,3.23907622]
[1633078091690,2.02041145,44825.0,44824.0,2.53907622]
[1633078091828,1.96442596,44825.0,44824.0,2.53907622]
[1633078092031,0.97116266,44825.0,44824.0,2.53907622]
[1633078092428,1.15036266,44825.0,44824.0,2.53907622]
[1633078092627,2.00036266,44825.0,44824.0,2.42547622]
[1633078092825,2.00036266,44825.0,44824.0,2.27046595]
[1633078093028,2.03936266,44825.0,44824.0,2.27046595]
[1633078093426,1.18936266,44825.0,44824.0,2.27046595]
[1633078093828,2.87236266,44825.0,44824.0,2.27046595]
[1633078094026,1.68936266,44825.0,44824.0,2.27046595]
[1633078094226,1.18936266,44825.0,44824.0,2.27046595]
[1633078094429,1.15036266,44825.0,44824.0,2.27046595]
[1633078094826,1.70036266,44825.0,44824.0,2.27046595]
[1633078095025,1.74136266,44825.0,44824.0,2.27046595]
[1633078095425,1.19136266,44825.0,44824.0,2.27046595]
[1633078095824,1.49136266,44825.0,44824.0,2.27046595]
[1633078096029,1.19136266,44825.0,44824.0,2.27046595]
[1633078096427,1.15036266,44825.0,44824.0,2.27046595]
[1633078096827,1.60036266,44825.0,44824.0,2.27046595]
[1633078097026,1.64136266,44825.0,44824.0,2.27046595]
[1633078097228,2.82436266,44825.0,44824.0,2.27046595]
[1633078097426,1.64136266,44825.0,44824.0,2.27046595]
[1633078097626,1.19136266,44825.0,44824.0,2.27046595]
[1633078097826,1.50018479,44825.0,44824.0,2.27046595]
[1633078098428,1.23598479,44825.0,44824.0,2.27046595]
[1633078098628,1.53598479,44825.0,44824.0,2.27046595]
[1633078098828,1.22716266,44825.0,44824.0,2.27046595]
[1633078099027,1.56686058,44825.0,44824.0,2.27046595]
[1633078099835,2.74986058,44825.0,44824.0,2.27046595]
[1633078100028,2.74986058,44825.0,44824.0,2.26369595]
[1633078100429,2.70786058,44825.0,44824.0,2.26369595]
[1633078101027,2.41016266,44825.0,44824.0,2.26369595]
[1633078101232,2.45216266,44825.0,44824.0,2.26369595]
[1633078102032,0.88922596,44825.0,44824.0,2.26369595]
[1633078102434,0.84722596,44825.0,44824.0,2.26369595]
[1633078102630,0.84722596,44825.0,44824.0,2.26299395]
[1633078103033,0.93101987,44825.0,44824.0,2.26299395]
[1633078103232,0.97201987,44825.0,44824.0,2.26299395]
[1633078103709,1.27201987,44825.0,44824.0,2.26299395]
[1633078104034,0.88822596,44825.0,44824.0,2.26299395]
[1633078104237,0.764653,44825.0,44824.0,2.26299395]
[1633078104436,0.446919,44825.0,44824.0,2.26299395]
[1633078104634,0.446919,44825.0,44824.0,2.27367039]
[1633078105039,0.446919,44825.0,44824.0,2.36109216]
[1633078105234,0.487919,44825.0,44824.0,2.36109216]
[1633078105437,0.487919,44825.0,44824.0,2.27367039]
[1633078105638,0.537919,44825.0,44824.0,2.27367039]
[1633078107038,1.76154681,44841.0,44825.0,0.226704]
[1633078107039,0.446282,44834.0,44825.0,0.226704]
[1633078107241,0.446282,44834.0,44826.0,0.33428921]
[1633078107438,0.446282,44834.0,44826.0,0.33375911]
[1633078107839,0.446282,44834.0,44826.0,0.51418763]
[1633078108044,0.23616869,44832.0,44826.0,0.51418763]
[1633078108238,0.334659,44830.0,44827.0,0.07538074]
[1633078108842,0.334659,44830.0,44826.0,0.18042852]
[1633078109039,0.334659,44830.0,44828.0,0.01067644]
[1633078109239,0.405659,44830.0,44828.0,0.01067644]
[1633078110541,0.384659,44830.0,44828.0,0.01067644]
[1633078111139,0.384659,44830.0,44828.0,0.03867644]
[1633078111140,0.414659,44830.0,44828.0,0.03867644]
[1633078112348,1.446263,44829.0,44828.0,0.03867644]
[1633078112544,1.795297,44829.0,44828.0,0.01067644]
[1633078112743,2.045297,44829.0,44828.0,0.01067644]
[1633078112945,2.095297,44829.0,44828.0,0.01067644]
[1633078113246,1.136297,44829.0,44828.0,0.01067644]
[1633078113444,0.440034,44829.0,44828.0,0.01067644]
[1633078113642,0.340034,44829.0,44828.0,0.01067644]
[1633078113842,0.299034,44829.0,44825.0,0.01067644]
[1633078114042,0.0723,44829.0,44825.0,0.01067644]
[1633078114446,0.0223,44829.0,44825.0,0.01067644]
[1633078115248,0.0543,44829.0,44825.0,0.03267644]
[1633078115447,0.1043,44829.0,44825.0,0.03267644]
[1633078116043,0.0543,44829.0,44825.0,0.03267644]
[1633078116244,0.0543,44829.0,44825.0,0.02847644]
[1633078116644,0.0223,44829.0,44825.0,0.00647644]
[1633078117244,0.0393,44829.0,44825.0,0.03147644]
[1633078117844,0.0223,44829.0,44828.0,0.19904025]
[1633078118714,0.0223,44829.0,44828.0,0.3088273]
[1633078119249,0.023,44829.0,44828.0,0.33906879]
[1633078119447,0.023,44829.0,44828.0,1.22001093]
[1633078119648,0.023,44829.0,44828.0,0.90085689]
[1633078119846,0.023,44829.0,44828.0,0.7648324]
[1633078120247,0.023,44829.0,44828.0,0.9878944]
[1633078120847,0.11,44834.0,44828.0,0.9588944]
[1633078121048,0.11,44834.0,44833.0,0.00120817]
[1633078121247,0.11,44834.0,44833.0,0.22786217]
[1633078121452,0.11,44834.0,44833.0,0.86129489]
[1633078121647,0.11,44834.0,44833.0,0.56182499]
[1633078121849,0.11,44834.0,44833.0,0.56830143]
[1633078122647,0.11,44834.0,44833.0,0.23486871]
[1633078123448,0.11,44834.0,44833.0,0.26986871]
[1633078123848,0.11,44834.0,44833.0,0.26933861]
[1633078124251,0.11,44834.0,44833.0,0.26986871]
[1633078124454,0.11,44834.0,44833.0,0.26933861]
[1633078124851,0.11,44834.0,44833.0,0.23433861]
[1633078125452,0.11,44834.0,44833.0,0.26933861]
[1633078125655,0.11,44834.0,44833.0,0.26986871]
[1633078126652,0.11,44834.0,44833.0,0.26933861]
[1633078127052,0.11,44834.0,44833.0,0.23433861]
[1633078127253,0.11,44834.0,44833.0,0.1710595]
[1633078127455,0.11,44834.0,44833.0,0.2060595]
[1633078129060,0.11,44834.0,44833.0,0.1598095]
[1633078129460,0.11,44834.0,44833.0,0.1948095]
[1633078130858,0.11,44834.0,44833.0,0.1598095]
[1633078131457,0.11,44834.0,44833.0,0.1948095]
[1633078132058,0.11,44834.0,44833.0,0.1598095]
[1633078133459,0.11,44834.0,44833.0,0.1938095]
[1633078134063,0.11,44834.0,44833.0,0.19252714]
[1633078134264,0.08,44834.0,44833.0,0.04047644]
[1633078134666,0.08,44834.0,44833.0,0.19253144]
[1633078136861,0.08,44834.0,44833.0,0.15853144]
[1633078137463,0.08,44834.0,44833.0,0.15906154]
[1633078137662,0.08,44834.0,44833.0,0.19306154]
[1633078138262,0.08,44834.0,44833.0,0.27992467]
[1633078138661,0.08,44834.0,44833.0,0.19306154]
[1633078138865,0.08,44834.0,44833.0,0.15906154]
[1633078139663,0.08,44834.0,44833.0,0.26536293]
[1633078140264,0.08,44834.0,44833.0,0.19406154]
[1633078140663,0.08,44834.0,44833.0,0.19353144]
[1633078141263,0.08,44834.0,44833.0,0.24163358]
[1633078141864,0.08,44834.0,44833.0,0.27716368]
[1633078142067,0.08,44834.0,44833.0,0.12457858]
[1633078143272,0.08,44834.0,44833.0,0.08957858]
[1633078143868,0.08,44834.0,44833.0,0.04147644]
[1633078145069,0.08,44834.0,44833.0,0.13394043]
[1633078145268,0.08,44834.0,44833.0,0.09894043]
[1633078145471,0.08,44834.0,44833.0,0.25099543]
[1633078145729,0.08,44834.0,44833.0,0.15853144]
[1633078145872,0.08,44834.0,44833.0,0.19353144]
[1633078146676,0.08,44834.0,44833.0,0.28921329]
[1633078146872,0.08,44834.0,44833.0,0.19353144]
[1633078147272,0.08,44834.0,44833.0,0.15853144]
[1633078147476,0.08,44834.0,44833.0,0.47599666]
[1633078147681,1.1074,44848.0,44834.0,1.25]
[1633078147682,1.17143684,44848.0,44834.0,1.25]
[1633078147879,0.06405709,44850.0,44847.0,0.09413732]
[1633078148081,0.06408643,44851.0,44848.0,0.34632125]
[1633078148282,0.00121899,44855.0,44849.0,0.00122785]
[1633078148481,0.06418674,44859.0,44854.0,0.11799955]
[1633078148680,0.98848743,44860.0,44859.0,0.0880113]
[1633078148879,0.98848743,44860.0,44859.0,1.16384551]
[1633078149077,0.98848743,44860.0,44859.0,1.16331541]
[1633078149277,1.09848743,44860.0,44859.0,1.16331541]
[1633078149680,1.09848743,44860.0,44859.0,1.38887086]
[1633078149875,1.09848743,44860.0,44859.0,1.41887086]
[1633078150674,1.09848743,44860.0,44859.0,1.33085956]
[1633078151079,1.09848743,44860.0,44859.0,0.92470545]
[1633078151274,1.09848743,44860.0,44859.0,1.2151629]
[1633078151679,1.09848743,44860.0,44859.0,1.30075763]
[1633078151881,1.09848743,44860.0,44859.0,1.81728171]
[1633078152076,1.09848743,44860.0,44859.0,1.81781181]
[1633078152276,1.09848743,44860.0,44859.0,1.81728171]
[1633078152676,1.09848743,44860.0,44859.0,2.05096344]
[1633078153076,1.09848743,44860.0,44859.0,1.73698243]
[1633078153277,1.09848743,44860.0,44859.0,1.6223877]
[1633078153477,1.09848743,44860.0,44859.0,1.38870597]
[1633078153877,1.09848743,44860.0,44859.0,1.41870597]
[1633078154277,1.09848743,44860.0,44859.0,1.49837706]
[1633078154478,1.09848743,44860.0,44859.0,1.72994916]
[1633078155279,1.09848743,44860.0,44859.0,1.69994916]
[1633078155877,1.09848743,44860.0,44859.0,1.73194916]
[1633078156077,1.09848743,44860.0,44859.0,1.65227807]
[1633078156879,1.09848743,44860.0,44859.0,1.65103199]
[1633078157741,1.09848743,44860.0,44859.0,1.62027359]
[1633078157879,1.09848743,44860.0,44859.0,1.65127359]
[1633078159079,1.09848743,44860.0,44859.0,1.31695059]
[1633078159279,1.09848743,44860.0,44859.0,1.28595059]
[1633078159481,1.07848743,44860.0,44859.0,1.28595059]
[1633078159785,1.07848743,44860.0,44859.0,1.05437849]
[1633078159981,1.07848743,44860.0,44859.0,1.08637849]
[1633078160580,1.05848743,44860.0,44859.0,1.08637849]
[1633078161581,1.05848743,44860.0,44859.0,0.90242349]
[1633078161981,1.05848743,44860.0,44859.0,0.93342349]
[1633078163385,1.05848743,44860.0,44859.0,0.90242349]
[1633078163988,1.05848743,44860.0,44859.0,0.93342349]
[1633078165286,1.05848743,44860.0,44859.0,0.90242349]
[1633078166087,1.05848743,44860.0,44859.0,0.93242349]
[1633078166754,1.05848743,44860.0,44859.0,0.93118189]
[1633078167287,1.05848743,44860.0,44859.0,0.86665196]
[1633078167489,1.05848743,44860.0,44859.0,0.83665196]
[1633078168088,1.05848743,44860.0,44859.0,0.86665196]
[1633078168889,1.05848743,44860.0,44859.0,0.64109651]
[1633078169289,1.10848743,44860.0,44859.0,0.64109651]
[1633078170096,1.05848743,44860.0,44859.0,0.64109651]
[1633078170693,0.85,44859.0,44855.0,0.222876]
[1633078170897,0.85,44859.0,44852.0,0.011]
[1633078170898,0.31520481,44856.0,44852.0,0.011]
[1633078171094,0.38877523,44853.0,44852.0,0.011]
[1633078171294,0.68778423,44853.0,44852.0,0.011]
[1633078171496,0.68778423,44853.0,44836.0,0.22299]
[1633078171695,0.21347362,44843.0,44840.0,0.1013957]
[1633078171895,0.21347362,44843.0,44841.0,0.821047]
[1633078172096,0.35460971,44842.0,44841.0,0.821047]
[1633078172758,0.08555159,44852.0,44841.0,0.821047]
[1633078172759,0.3647939,44851.0,44841.0,0.821047]
[1633078172895,0.4147939,44851.0,44841.0,0.66903]
[1633078173098,0.7492979,44851.0,44841.0,0.66903]
[1633078173495,0.18661638,44848.0,44841.0,0.66903]
[1633078173715,0.20652983,44845.0,44841.0,0.66903]
[1633078173896,0.34639672,44844.0,44842.0,0.152013]
[1633078174097,0.39639672,44844.0,44843.0,0.66903]
[1633078174295,0.05,44844.0,44843.0,0.821041]
[1633078174596,0.334519,44849.0,44843.0,0.821041]
[1633078174795,0.334519,44849.0,44843.0,2.65333978]
[1633078174997,0.334519,44849.0,44847.0,0.31343944]
[1633078174998,0.05,44849.0,44847.0,0.31343944]
[1633078175202,0.05,44849.0,44848.0,0.151989]
[1633078175398,0.24923186,44852.0,44848.0,0.151989]
[1633078175998,0.24923186,44852.0,44848.0,0.24602284]
[1633078176200,0.29023186,44852.0,44848.0,0.24602284]
[1633078176596,0.29023186,44852.0,44848.0,0.151989]
[1633078176797,0.34023186,44852.0,44848.0,0.151989]
[1633078177197,0.34023186,44852.0,44844.0,0.22426196]
[1633078177601,0.34023186,44852.0,44845.0,0.08220956]
[1633078177806,0.22419891,44858.0,44845.0,0.08220956]
[1633078177807,0.06400282,44863.0,44860.0,0.88179669]
[1633078178009,0.1,44869.0,44863.0,0.12648451]
[1633078178201,0.1,44869.0,44865.0,0.22283857]
[1633078178399,0.1,44869.0,44866.0,0.0228301]
[1633078178598,0.1,44869.0,44867.0,0.66903]
[1633078178801,0.1,44869.0,44868.0,1.00564201]
[1633078178999,0.1,44869.0,44868.0,1.67590057]
[1633078179201,0.1,44869.0,44868.0,1.82781657]
[1633078179402,0.1,44869.0,44868.0,2.38581657]
[1633078179604,0.1,44869.0,44868.0,2.48581657]
[1633078180002,0.1,44869.0,44868.0,2.38581657]
[1633078180202,0.1,44869.0,44868.0,2.41881657]
[1633078180805,0.1,44869.0,44868.0,2.09256003]
[1633078181204,2.68086677,44870.0,44869.0,0.55]
[1633078181402,2.68086677,44870.0,44869.0,1.16983102]
[1633078181604,2.68086677,44870.0,44869.0,0.94443306]
[1633078181802,2.68086677,44870.0,44869.0,0.84443306]
[1633078182203,2.68086677,44870.0,44869.0,0.87396316]
[1633078182801,2.68086677,44870.0,44869.0,0.87343306]
[1633078183603,2.68086677,44870.0,44869.0,0.84443306]
[1633078184404,2.68086677,44870.0,44869.0,0.87343306]
[1633078184804,2.68086677,44870.0,44869.0,1.16829703]
[1633078185206,2.68086677,44870.0,44869.0,0.87343306]
[1633078185405,2.68086677,44870.0,44869.0,1.1673472]
[1633078185607,2.68086677,44870.0,44869.0,0.84443306]
[1633078186005,2.68086677,44870.0,44869.0,1.15006607]
[1633078186207,2.79086677,44870.0,44869.0,1.15006607]
[1633078186408,2.79086677,44870.0,44869.0,1.17906607]
[1633078187206,2.34520977,44870.0,44869.0,1.17906607]
[1633078187807,1.89955577,44870.0,44869.0,1.15006607]
[1633078188009,1.89955577,44870.0,44869.0,1.25006607]
[1633078188608,1.89955577,44870.0,44869.0,1.27906607]
[1633078189208,1.89955577,44870.0,44869.0,0.97343306]
[1633078189406,1.89955577,44870.0,44869.0,0.87343306]
[1633078190211,1.89955577,44870.0,44869.0,0.84443306]
[1633078190411,1.89955577,44870.0,44869.0,0.87243306]
[1633078190609,1.89955577,44870.0,44869.0,1.18210921]
[1633078192269,1.89955577,44870.0,44869.0,0.87243306]
[1633078192470,1.89955577,44870.0,44869.0,0.84443306]
[1633078192674,1.90355577,44870.0,44869.0,0.87343306]
[1633078193870,1.90355577,44870.0,44869.0,0.84443306]
[1633078194472,1.79355577,44870.0,44869.0,0.87443306]
[1633078195873,1.79355577,44870.0,44869.0,0.84443306]
[1633078196670,1.79355577,44870.0,44869.0,0.87343306]
[1633078197875,1.79355577,44870.0,44869.0,0.97343306]
[1633078198075,1.79355577,44870.0,44869.0,0.84443306]
[1633078198875,1.79355577,44870.0,44869.0,0.87443306]
[1633078200279,1.79355577,44870.0,44869.0,0.84443306]
[1633078200878,1.79355577,44870.0,44869.0,0.87343306]
[1633078202478,1.79355577,44870.0,44869.0,0.94443306]
[1633078202681,1.79355577,44870.0,44869.0,0.97443306]
[1633078203081,1.79355577,44870.0,44869.0,0.87443306]
[1633078203479,1.79355577,44870.0,44869.0,0.97443306]
[1633078203882,1.79355577,44870.0,44869.0,0.97393306]
[1633078204080,1.79355577,44870.0,44869.0,0.92213306]
[1633078204485,1.79355577,44870.0,44869.0,0.82213306]
[1633078204685,1.79355577,44870.0,44869.0,0.820927]
[1633078204881,1.79355577,44870.0,44869.0,0.850927]
[1633078206885,1.79355577,44870.0,44869.0,0.820927]
[1633078207084,1.79355577,44870.0,44869.0,0.849927]
[1633078207286,1.79355577,44870.0,44869.0,0.78540786]
[1633078207484,1.79355577,44870.0,44869.0,1.11968386]
[1633078208484,1.79355577,44870.0,44869.0,1.09068386]
[1633078208885,1.79355577,44870.0,44869.0,1.11968386]
[1633078209287,1.79310583,44870.0,44869.0,1.11968386]
[1633078209891,1.79310583,44870.0,44869.0,0.78540786]
[1633078210091,1.85761149,44870.0,44869.0,0.69803]
[1633078210890,1.85761149,44870.0,44869.0,0.69603]
[1633078211090,1.82010583,44870.0,44869.0,0.69603]
[1633078211489,1.93010583,44870.0,44869.0,0.99000013]
[1633078211691,1.93010583,44870.0,44869.0,0.69603]
[1633078212291,1.93010583,44870.0,44869.0,0.783418]
[1633078212492,1.93010583,44870.0,44869.0,0.756418]
[1633078212691,1.90310583,44870.0,44869.0,0.756418]
[1633078213090,1.90310583,44870.0,44869.0,0.784418]
[1633078213490,1.42974637,44870.0,44869.0,0.784418]
[1633078214492,1.42974637,44870.0,44869.0,1.1834589]
[1633078214692,1.42974637,44870.0,44869.0,0.856418]